Cogmind - Beta 14 @@@ ROGUE MODE // 2024.08.30 @ 21:33:37 Player: Eddbot Result: Self-destructed Performance ------------- Evolutions (1) 500 Regions Visited (3) 600 Robots Destroyed (29) 145 Value Destroyed (457) 457 Prototype IDs (0) 0 Alien Tech Used (0) 0 Bonus (0) 0 TOTAL SCORE: 1702 Bonus ------- None Cogmind --------- Core Integrity 96/400 Matter 285/300 Energy 100/100 System Corruption 0% Temperature Cool (0) Movement Core (350) Ox6 Location -9/Materials Parts ------- > --- POWER (2) -------- (None) > --- PROPULSION (2) --- (None) > --- UTILITY (3) ------ Large Storage Unit > --- WEAPON (2) ------- (None) > --- INVENTORY (15) --- Light Ion Engine Aluminum Leg Aluminum Leg Mining Laser Peak State ------------ > --- POWER ------------ Ion Engine Light Ion Engine > --- PROPULSION ------- Combat Airjet > --- UTILITY ---------- Large Storage Unit Seismic Detector Light Armor Plating > --- WEAPON ----------- Small Laser Grenade Launcher > --- INVENTORY -------- Light Ion Engine Aluminum Leg Aluminum Leg Assault Rifle Rocket Launcher Mining Laser [Rating: 12] Favorites ----------- Power Light Ion Engine Engine Light Ion Engine Propulsion Light Treads Treads Light Treads Leg Aluminum Leg Hover Unit Combat Airjet Utility Small Storage Unit Device Seismic Detector Storage Small Storage Unit Protection Light Armor Plating Weapon Small Laser Energy Gun Small Laser Ballistic Gun Assault Rifle Launcher Grenade Launcher Special Weapon Mining Laser Build | -11 -10 -10 -9 ------- Run | Yrd Mat Min Mat Slots Evolved 2 | . . . 2 Power 1 | . . . 1 Propulsion . | . . . . Utility 1 | . . . 1 Weapon . | . . . . Parts Attached 24 | 8 8 2 6 Power 3 | 1 1 . 1 Engine 3 | 1 1 . 1 Core . | . . . . Reactor . | . . . . Propulsion 6 | 2 3 1 . Treads 2 | 2 . . . Leg 3 | . 3 . . Wheel . | . . . . Hover 1 | . . 1 . Flight . | . . . . Utility 6 | 3 . 1 2 Device 3 | 2 . 1 . Storage 2 | 1 . . 1 Processor . | . . . . Hackware . | . . . . Protection 1 | . . . 1 Artifact . | . . . . Weapon 9 | 2 4 . 3 Energy Gun 1 | 1 . . . Energy Cannon . | . . . . Ballistic Gun 3 | 1 1 . 1 Ballistic Cannon . | . . . . Launcher 4 | . 2 . 2 Special Weapon 1 | . 1 . . Impact Weapon . | . . . . Slashing Weapon . | . . . . Piercing Weapon . | . . . . Special Melee Weapon . | . . . . Unidentified Prototypes . | . . . . Parts Lost 10 | . 1 . 9 Power 2 | . . . 2 Propulsion 1 | . . . 1 Utility 3 | . 1 . 2 Weapon 4 | . . . 4 Highest Loss Streak 4 | . 1 . 4 To Critical Strikes . | . . . . Average Slot Usage (%) 77 | . 88 85 60 Engine 13 | . 14 14 12 Treads 6 | . 20 . . Leg 7 | . 1 22 . Hover 4 | . . 2 9 Device 6 | . 8 3 8 Storage 12 | . 14 14 11 Energy Gun 10 | . 14 14 5 Ballistic Gun 2 | . 3 . 2 Launcher 11 | . 10 14 9 Peak Build Rating 12 | 9 9 11 12 Average Rating 7 | 6 7 6 9 On Entrance 6 | . 9 6 10 Naked Turns . | . . . . Heaviest Build 36 | 12 14 15 36 Greatest Support 40 | 40 40 20 12 Greatest Overweight (x) 6 | . 3 1 6 Average Overweight (x) . | . . . 1 Largest Inventory Capacity 15 | 8 8 8 15 Average Capacity 9 | 7 8 8 12 Most Carried 8 | 6 8 8 8 Average Carried 5 | 3 6 7 5 Final Capacity 15 | 8 8 8 15 Final Carried 8 | 5 6 8 4 Class Distribution -------------------- 100% | Mutant Dominant Class ---------------- Mutant | -10/Materials Mutant | -10/Mines Mutant | -9/Materials Resources | -11 -10 -10 -9 ----------- Run | Yrd Mat Min Mat Matter Collected 517 | 295 75 68 79 Remotely . | . . . . Salvage Created 565 | 118 226 30 191 Parts 49 | 9 15 4 21 Haulers Intercepted . | . . . . Recyclers Shooed 1 | . 1 . . Parts Field Recycled . | . . . . Retrieved Matter . | . . . . Parts Self-Destructed . | . . . . Prevented . | . . . . Kills | -11 -10 -10 -9 ------- Run | Yrd Mat Min Mat Combat Hostiles Destroyed 22 | . 10 3 9 Guns 9 | . 7 . 2 AOE 13 | . 3 3 7 Classes Destroyed 7 | 2 2 1 2 Worker 1 | . . 1 . Builder 2 | . . . 2 Tunneler 3 | 3 . . . Recycler 1 | 1 . . . Swarmer 15 | . 6 3 6 Grunt 6 | . 4 . 2 Sentry 1 | . . . 1 Best Kill Streak 4 | 4 4 4 4 Combat Bots Only 4 | . 4 3 4 Max Kills in Single Turn 3 | 1 3 2 2 Gunslinging . | . . . . Exploded 3 | . 3 2 2 Melee . | . . . . Uniques/NPCs Destroyed . | . . . . Combat | -11 -10 -10 -9 -------- Run | Yrd Mat Min Mat Hostile Shots Fired 138 | . 49 7 82 Missed 34 | . 12 2 20 Damage Taken 1350 | . 366 96 888 Core 358 | . 54 . 304 Absorbed by Shields . | . . . . Core Remaining (%) 89 | 100 . 78 . Volleys Fired 66 | 5 29 3 29 Largest 2 | 2 2 1 1 Hottest 60 | 60 60 30 40 Shots Fired 73 | 10 31 3 29 Gun 62 | 10 30 . 22 Cannon . | . . . . Launcher 11 | . 1 3 7 Special . | . . . . Kinetic 8 | 5 2 . 1 Thermal 54 | 5 28 . 21 Explosive 11 | . 1 3 7 Electromagnetic . | . . . . Robot Hit Streak 11 | 7 11 . 8 Robot Miss Streak 2 | . 2 2 2 Penetration Max . | . . . . Secondary Targets . | . . . . Shots Hit Robots 52 | 7 24 . 21 Core Hits 37 | 5 15 3 14 Critical Kills . | . . . . Critical Parts Destroyed . | . . . . Critical Strikes . | . . . . Melee Attacks . | . . . . Impact . | . . . . Slashing . | . . . . Piercing . | . . . . Sneak Attacks . | . . . . Combat Hostiles . | . . . . Follow-up Attacks . | . . . . Damage Inflicted 1272 | 82 393 141 656 Guns 547 | 82 266 . 199 Cannons . | . . . . Explosions 725 | . 127 141 457 Melee . | . . . . Ramming . | . . . . Kinetic 51 | 27 24 . . Thermal 496 | 55 242 . 199 Explosive 725 | . 127 141 457 Electromagnetic . | . . . . Impact . | . . . . Slashing . | . . . . Piercing . | . . . . Highest Corruption . | . . . . Average Corruption . | . . . . Corruption Purged . | . . . . Corruption Blocked . | . . . . Overload Shots . | . . . . Overflow Damage 38 | . 9 16 13 Projectiles . | . . . . Explosions 38 | . 9 16 13 Melee . | . . . . Knockbacks . | . . . . Impact . | . . . . Kinetic . | . . . . Secondary . | . . . . Self-Inflicted Damage 168 | . 10 53 105 Shots 6 | . 1 2 3 Rammed . | . . . . Targets Rammed . | . . . . Kicked . | . . . . Crushed . | . . . . Highest Temperature 278 | . 54 . 278 Average Temperature 109 | . 33 . 162 Received Heat Transfer 435 | . 108 . 327 Effects 1 | . . . 1 Interference 1 | . . . 1 Siege Activations . | . . . . Robots Corrupted . | . . . . Combat Hostiles . | . . . . Parts Fried . | . . . . Impact Corruptions . | . . . . Robots Melted . | . . . . Combat Hostiles . | . . . . Parts Melted 2 | . 1 . 1 Heat Transferred 1125 | 125 550 . 450 Parts Sabotaged . | . . . . Parts Stolen . | . . . . Parts Stripped . | . . . . Power Chain Reactions . | . . . . Alert | -11 -10 -10 -9 ------- Run | Yrd Mat Min Mat Peak Influence 332 | 20 260 221 332 Initial 101 | . 13 101 85 Average 127 | 10 92 181 174 Maximum Alert Level 1 | . 1 1 1 Low Security (%) 67 | 100 88 33 59 Level 1 32 | . 11 66 40 Level 2 . | . . . . Level 3 . | . . . . Level 4 . | . . . . Level 5 . | . . . . High Security . | . . . . Max Security . | . . . . Squads Dispatched 1 | . 1 . . Investigation . | . . . . Extermination . | . . . . Reinforcement 1 | . 1 . . Assault . | . . . . Garrison . | . . . . Intercept . | . . . . Searches Triggered . | . . . . Construction Impeded . | . . . . Haulers Reinforced . | . . . . Active Scanning Responses . | . . . . Cargo Convoy Interrupts . | . . . . Stealth | -11 -10 -10 -9 --------- Run | Yrd Mat Min Mat Distress Signals 3 | . 2 . 1 Communications Jammed . | . . . . Distress Signals . | . . . . Times Spotted 36 | . 16 6 14 Peak Tracking Total 9 | . 9 3 6 Tactical Retreats 4 | . 3 1 . Traps | -11 -10 -10 -9 ------- Run | Yrd Mat Min Mat Traps Triggered 1 | . 1 . . Indirectly . | . . . . Trap Hack Attempts . | . . . . Triggered . | . . . . Disarmed . | . . . . Reprogrammed . | . . . . Reused . | . . . . Traps Extracted . | . . . . Installed . | . . . . Triggered . | . . . . Machines | -11 -10 -10 -9 ---------- Run | Yrd Mat Min Mat Machines Disabled 2 | . . 2 . Max in Single Turn 1 | . . 1 . Machines Repaired . | . . . . Machines Dismantled . | . . . . Machines Sabotaged . | . . . . Overloaded Fab Kills . | . . . . Hacking | -11 -10 -10 -9 --------- Run | Yrd Mat Min Mat Machines Accessed 3 | . 2 . 1 Terminals 2 | . 2 . . Fabricators . | . . . . Repair Stations . | . . . . Recycling Units . | . . . . Scanalyzers 1 | . . . 1 Garrison Access . | . . . . Total Hacks 8 | . 6 . 2 Successful 6 | . 4 . 2 Failed 2 | . 2 . . Catastrophic . | . . . . Database Lockouts . | . . . . Manual . | . . . . Terminals 6 | . 6 . . Fabricators . | . . . . Repair Stations . | . . . . Recycling Units . | . . . . Scanalyzers 2 | . . . 2 Garrison Access . | . . . . Terminal Hacks 4 | . 4 . . Record 2 | . 2 . . Alert Level 1 | . 1 . . Unreport Threat 1 | . 1 . . Fabricator Hacks . | . . . . Repair Station Hacks . | . . . . Recycling Unit Hacks . | . . . . Scanalyzer 2 | . . . 2 Insert Component 1 | . . . 1 Analyze 1 | . . . 1 Garrison Access Hacks . | . . . . Unauthorized Hacks . | . . . . Terminals . | . . . . Fabricators . | . . . . Repair Stations . | . . . . Recycling Units . | . . . . Scanalyzers . | . . . . Garrison Access . | . . . . Data Cores Recovered . | . . . . Used . | . . . . Hacking Detections 2 | . 2 . . Full Trace Events . | . . . . Feedback Events . | . . . . Feedback Blocked . | . . . . Robot Schematics Acquired . | . . . . Robots Built . | . . . . Authchips . | . . . . Time . | . . . . Total Robot Build Rating . | . . . . Part Schematics Acquired 1 | . . . 1 Parts Built . | . . . . Authchips . | . . . . Time . | . . . . Total Part Build Rating . | . . . . Parts Repaired . | . . . . Time . | . . . . Parts Recycled . | . . . . Recycled Matter . | . . . . Retrieved Matter . | . . . . Retrieved Components . | . . . . Parts Scanalyzed 1 | . . . 1 Part Schematics Acquired 1 | . . . 1 Parts Damaged . | . . . . Bothacking | -11 -10 -10 -9 ------------ Run | Yrd Mat Min Mat Used RIF Installer . | . . . . Robots Hacked . | . . . . Non-combat . | . . . . Combat . | . . . . Robot Hacks Applied . | . . . . Relay Couplers Released . | . . . . Fabnet Peak Effective % . | . . . . Robots Rewired . | . . . . Allies Hacked . | . . . . Hacks Repelled . | . . . . Allies | -11 -10 -10 -9 -------- Run | Yrd Mat Min Mat Total Allies . | . . . . Largest Group . | . . . . Highest-Rated Group . | . . . . Highest-Rated Ally . | . . . . Total Orders . | . . . . Ally Attacks . | . . . . Total Damage . | . . . . Kills . | . . . . Allies Corrupted . | . . . . Allies Melted . | . . . . Intel | -11 -10 -10 -9 ------- Run | Yrd Mat Min Mat Robot Analysis Total . | . . . . Derelict Logs Recovered 1 | . . 1 . Drone Launches . | . . . . Drone Recoveries . | . . . . Exploration | -11 -10 -10 -9 ------------- Run | Yrd Mat Min Mat Turns Passed 951 | 145 271 233 302 Spaces Moved 494 | 75 119 176 124 Core 34 | 9 14 . 11 Treads 154 | 66 88 . . Legs 160 | . 17 143 . Wheels . | . . . . Hover 146 | . . 33 113 Flight . | . . . . Fastest Speed 50 | 50 120 120 150 Average Speed 153 | 146 163 125 189 Slowest Speed 350 | 160 200 150 350 Overloaded Moves . | . . . . Propulsion Burnouts . | . . . . Robots Hopped . | . . . . Cave-ins Triggered . | . . . . Exploration Rate (%) 23 | 3 29 48 12 Regions Visited 3 Branch Regions 1 Pre-discovered Areas . | . . . . Known Exits Taken . | . . . . Unknown Exits Taken 3 | 1 1 1 . Scrap Searched 1 | . . 1 . Spaces Dug . | . . . . Terrain Destroyed 79 | . 3 15 61 Melee . | . . . . Projectile . | . . . . AOE 79 | . 3 15 61 Terrain Rammed . | . . . . Walls Destroyed . | . . . . Machines Disabled . | . . . . Actions | -11 -10 -10 -9 --------- Run | Yrd Mat Min Mat Total 609 | 100 163 185 161 Wait . | . . . . Move 491 | 74 118 175 124 Hop . | . . . . Pick Up 21 | 12 5 3 1 Fast Attach . | . . . . Attach 15 | 8 2 1 4 Detach 2 | 1 . 1 . Swap 9 | . 6 1 2 Drop 5 | . 3 1 1 Fire 66 | 5 29 3 29 Melee . | . . . . Ram . | . . . . Kick . | . . . . Crush . | . . . . Escape Stasis . | . . . . Rewire . | . . . . Trap . | . . . . Miscellaneous . | . . . . Route ------- -11/Scrapyard -10/Materials -10/Mines -9/Materials History --------- Turn | Location | Event 7 | -11/Scrapyard | Discovered new exit (range 16) 146 | -11/Scrapyard | Entered Materials 318 | -10/Materials | Build established: Mutant 407 | -10/Materials | Discovered new exit (range 6) 417 | -10/Materials | Entered Mines 442 | -10/Mines | Met a Derelict bent on vengeance 442 | -10/Mines | Received a Rocket Launcher from a helpful Derelict 517 | -10/Mines | Learned Materials stockpile data 519 | -10/Mines | Discovered new exit (range 11) 565 | -10/Mines | Assembled infested the area 567 | -10/Mines | Found a hidden stash of uninstalled traps 570 | -10/Mines | Assisted by a Guerilla fighting off Assembled 650 | -10/Mines | Entered Materials 650 | -9/Materials | Evolved 2 slots: Power x1, Utility x1 858 | -9/Materials | Lost 4 parts (2p1u1w) 919 | -9/Materials | Core integrity fell below 50% 940 | -9/Materials | Lost 4 parts (1n1u2w) 952 | -9/Materials | Self-destructed Last Messages --------------- 00923_ Critical hit (Burn: +37). 00924_ U-05 Engineer lays Concrete. 00924_ U-05 Engineer builds a Wall. 00925_ U-05 Engineer lays Concrete. 00928_ U-05 Engineer builds a Wall. 00928_ U-05 Engineer lays Concrete. 00929_ U-05 Engineer builds a Wall. 00929_ U-05 Engineer lays Concrete. 00933_ U-05 Engineer builds a Wall. 00934_ U-05 Engineer lays Concrete. 00937_ U-05 Engineer builds a Wall. 00939_ The unstable cave ceiling collapses. 00939_ U-05 Engineer lays Concrete. 00941_ U-05 Engineer builds a Wall. 00941_ U-05 Engineer lays Concrete. 00943_ U-05 Engineer builds a Wall. 00946_ Destroyed Welding Torch. 00946_ U-05 Engineer destroyed. 00946_ Grenade Launcher destroyed. 00946_ Destroyed Grenade Launcher. Map ----- +----------------------------------------------------+ | ???????????????????????????????????? | | ???????????????????????????????????? | | ???????????????????????????????????? | | ???????????????????????? ?????????? | | ???????????????????????? ?????????? | | ???????????????????????? #????????? | | ???????????????????????# #????????? | | ??????????###??????????+ #????????? | | ?????????## ########???# #????????? | | ?????????# #???# #????????? | | ???#?????# #???# #????????? | | ??? ????# #???# #?? ???? | | ???? ???# "" ] #???#u #?? ???? | | ???? ???# """ #???# #?? ????? | | #???? ??# """ "" #???# #? ????? | | ? ?? ]??# S"" ##### ## ?????? | | ??? ? ### "" # ## # ?????? | | #####/########+# ####* # ??????? | | = !*[ % ??????? | | !%* =%=[ [ ???????? | | ### #+#########+# *%* ???????? | | #?# #= ## = #!Y%=#???????? | | #?#! !# #"" !# ! #???????? | | #?##!!!!## ##"Y ! #???????? | | #??###### #"" ## #???????? | | #???????# ## ## @##???????? | | #???????## ## + Y ???????? | | #????????# ########## ?????? | | #????????# #????????## ### ???? | | #????????# #?????????#+#??? #??? | | #????????######???????????????? #??? | | #???????????????????????????????#??? | | ???????????????????????????????????? | | ???????????????????????????????????? | | ???????????????????????????????????? | | ???????????????????????????????????? | | ???????????????????????????????????? | | ???????????????????????????????????? | | ???????????????????????????????????? | | ???????????????????????????????????? | | ???????????????????????????????????? | | ???????????????????????????????????? | | | | | | | | | | | | | | | | | +----------------------------------------------------+ Best States ------------- Heat Dissipation 28 Energy Generation 15 Energy Capacity 275 Matter Stores 300 Matter Capacity 300 Sight Range 16 Terrain Scan Range 16 Terrain Scan Density 10 Armor Coverage 150 Evasion (%) 55 Recoil Reduction 2 Item Schematics ----------------- Aluminum Leg | -9/Materials | Scanalyzed Robot Schematics ------------------ None Fabricated ------------ Nothing Alien Tech Used ----------------- None Achievements -------------- None Challenges ------------ None Game ------ Seed SensorBattleGun Manual? 0 Play Time 00:15:37 Cumulative 35.9 hours Start 2024.08.30 @ 21:20:39 End 2024.08.30 @ 21:33:37 Sessions 1 Manual Loads 0 Difficulty Rogue Special Mode None Game No. 79 Rogue 79 Adventurer 0 Explorer 0 Win Type - Total 0 Types 0/0/0/0/0/0/0/0/0 Lore% 16 Gallery% 26 Achievement% 23 Wizard Run 0 Options --------- Layout 1 ASCII 0 Keyboard 0 Movement Mouse Keybinds 0 Fullscreen 1 Font 24/Smallcaps Map View 50x35 Zoom Use 0% Tactical HUD 1 Map Filters NONE Filters NONE Steam 1 RUN: 944ea945-cca2-44af-980f-d25977316aa5